Cogmind - Beta 17 @@@ ROGUE MODE // 2026.07.30 @ 00:49:11 Player: aperiodic Result: Destroyed by H-55 Commando with Assault Rifle Performance ------------- Evolutions (0) 0 Regions Visited (2) 400 Robots Destroyed (30) 150 Value Destroyed (659) 659 Prototype IDs (0) 0 Alien Tech Used (0) 0 Bonus (-4) -4 TOTAL SCORE: 1205 Bonus ------- Friendly Fire -4 Cogmind --------- Core Integrity 0/250 Matter 288/300 Energy 75/100 System Corruption 1% Temperature Cool (0) Movement Walking (120) Location -10/Subcaves Parts ------- > --- POWER (1) -------- (None) > --- PROPULSION (2) --- Carbon-fiber Leg > --- UTILITY (2) ------ (None) > --- WEAPON (2) ------- Light Assault Rifle > --- INVENTORY (5) ---- Ion Engine Wheel Wheel Peak State ------------ > --- POWER ------------ Ion Engine > --- PROPULSION ------- Improved Treads Improved Treads > --- UTILITY ---------- Disposable Heat Sink Seismic Detector > --- WEAPON ----------- Spread Laser Spread Laser > --- INVENTORY -------- Ion Engine Wheel Wheel Wheel Light Assault Rifle [Rating: 12] Favorites ----------- Power Ion Engine Engine Ion Engine Propulsion Improved Treads Treads Improved Treads Leg Carbon-fiber Leg Wheel Wheel Utility Seismic Detector Device Seismic Detector Storage Small Storage Unit Weapon Assault Rifle Energy Gun Spread Laser Ballistic Gun Assault Rifle Special Weapon Mining Laser Build | -11 -10 -10 ------- Run | Yrd Mat Sub Slots Evolved . | . . . Power . | . . . Propulsion . | . . . Utility . | . . . Weapon . | . . . Parts Attached 24 | 10 8 6 Power 1 | 1 . . Engine 1 | 1 . . Core . | . . . Reactor . | . . . Propulsion 10 | 5 3 2 Treads 4 | . 3 1 Leg 1 | . . 1 Wheel 5 | 5 . . Hover . | . . . Flight . | . . . Utility 6 | 2 3 1 Device 4 | 1 2 1 Storage 2 | 1 1 . Processor . | . . . Hackware . | . . . Protection . | . . . Artifact . | . . . Weapon 7 | 2 2 3 Energy Gun 3 | . 1 2 Energy Cannon . | . . . Ballistic Gun 3 | 2 . 1 Ballistic Cannon . | . . . Launcher . | . . . Special Weapon 1 | . 1 . Impact Weapon . | . . . Slashing Weapon . | . . . Piercing Weapon . | . . . Special Melee Weapon . | . . . Unidentified Prototypes . | . . . Parts Lost 10 | . 1 9 Power 1 | . . 1 Propulsion 3 | . . 3 Utility 3 | . 1 2 Weapon 3 | . . 3 Highest Loss Streak 8 | . 1 8 To Critical Strikes . | . . . Average Backups 8 | 5 9 5 Power . | . 1 . Propulsion 4 | 3 5 2 Utility . | . . . Weapon 2 | . 2 1 Tool/Special . | . . . Unused Backups 11 | 1 4 6 Power 2 | . 1 1 Propulsion 5 | 1 3 1 Utility 1 | . . 1 Weapon 3 | . . 3 Tool/Special . | . . . Average Slot Usage (%) 99 | . 99 96 Engine 13 | . 14 13 Treads 18 | . 18 17 Wheel 9 | . 9 9 Device 16 | . 13 26 Storage 11 | . 14 . Energy Gun 6 | . 1 26 Ballistic Gun 21 | . 26 . Peak Build Rating 12 | 7 11 12 Average Rating 9 | 5 8 10 On Entrance 5 | . 7 10 Avg Prop Armor Cover (%) 13 | . 5 14 Naked Turns . | . . . Heaviest Build 31 | 15 31 31 Greatest Support 46 | 32 46 46 Greatest Overweight (x) 4 | 4 1 1 Average Overweight (x) . | . . . Largest Inventory Capacity 15 | 8 15 15 Average Capacity 9 | 7 10 5 Most Carried 15 | 8 15 15 Average Carried 8 | 5 9 5 Final Capacity 15 | 8 15 5 Final Carried 15 | 8 15 3 Class Distribution -------------------- 100% | Mutant Dominant Class ---------------- Mutant | -10/Materials Mutant | -10/Subcaves Resources | -11 -10 -10 ----------- Run | Yrd Mat Sub Matter Collected 1019 | 390 494 135 Remotely . | . . . Salvage Created 931 | 206 517 208 Parts 60 | 17 33 10 Haulers Intercepted 2 | . 2 . Recyclers Shooed 2 | 2 . . Parts Field Recycled . | . . . Retrieved Matter . | . . . Parts Self-Destructed 4 | . . 4 Prevented . | . . . Parts Restored . | . . . Kills | -11 -10 -10 ------- Run | Yrd Mat Sub Combat Hostiles Destroyed 19 | . 12 7 Guns 19 | . 12 7 Classes Destroyed 8 | 2 4 2 Tunneler 6 | 6 . . Hauler 2 | . 2 . Recycler 2 | 1 1 . Watcher 1 | . 1 . Swarmer 6 | . 6 . Grunt 6 | . 6 . Hunter 1 | . . 1 Subdweller 6 | . . 6 Best Kill Streak 6 | 2 6 2 Combat Bots Only 6 | . 6 2 Max Kills in Single Turn 2 | 1 2 1 Gunslinging 1 | . 1 . Exploded . | . . . Melee . | . . . Uniques/NPCs Destroyed . | . . . Combat | -11 -10 -10 -------- Run | Yrd Mat Sub Hostile Shots Fired 119 | . 47 72 Missed 28 | . 10 18 Hits 91 | . 37 54 Projectile 91 | . 37 54 Damage Taken 1295 | . 459 836 Core 250 | . 69 181 Absorbed by Shields . | . . . Core Remaining (%) 100 | 100 . . Volleys Fired 105 | 15 56 34 Largest 2 | 2 2 2 Hottest 130 | 40 100 130 Shots Fired 188 | 30 106 52 Gun 185 | 30 103 52 Cannon . | . . . Launcher . | . . . Special 3 | . 3 . Kinetic 134 | 30 95 9 Thermal 54 | . 11 43 Explosive . | . . . Electromagnetic . | . . . Robot Hit Streak 19 | 7 19 12 Robot Miss Streak 4 | 1 4 4 Penetration Max . | . . . Secondary Targets 2 | . 2 . Max Gunslinging Chain 1 | . 1 . Shots Hit Robots 134 | 19 72 43 Core Hits 86 | 8 32 46 Critical Kills . | . . . Critical Parts Destroyed 1 | . 1 . Critical Strikes 1 | . 1 . Destroy 1 | . 1 . Melee Attacks . | . . . Impact . | . . . Slashing . | . . . Piercing . | . . . Sneak Attacks . | . . . Combat Hostiles . | . . . Follow-up Attacks . | . . . Damage Inflicted 1807 | 235 900 672 Guns 1797 | 235 890 672 Cannons . | . . . Explosions . | . . . Melee . | . . . Ramming 10 | . 10 . Kinetic 1061 | 235 780 46 Thermal 736 | . 110 626 Explosive . | . . . Electromagnetic . | . . . Impact . | . . . Slashing . | . . . Piercing . | . . . Highest Corruption 1 | . . 1 Average Corruption 1 | . . 1 Corruption Purged . | . . . Corruption Blocked . | . . . Overload Shots . | . . . Overflow Damage . | . . . Projectiles . | . . . Explosions . | . . . Melee . | . . . Knockbacks . | . . . Impact . | . . . Kinetic . | . . . Secondary . | . . . Self-Inflicted Damage . | . . . Shots . | . . . Rammed 1 | . 1 . Targets Rammed 1 | . 1 . Kicked . | . . . Crushed . | . . . Highest Temperature 72 | . 72 45 Average Temperature 19 | . 22 16 Received Heat Transfer 162 | . 156 6 Siege Activations . | . . . Martial Activations . | . . . Shielding Activations . | . . . Robots Disrupted . | . . . Combat Hostiles . | . . . Robots Corrupted . | . . . Combat Hostiles . | . . . Parts Fried . | . . . Impact Corruptions . | . . . Robots Melted . | . . . Combat Hostiles . | . . . Parts Melted . | . . . Heat Transferred 895 | . 140 755 Parts Sabotaged . | . . . Parts Stolen . | . . . Parts Stripped . | . . . Power Chain Reactions . | . . . Alert | -11 -10 -10 ------- Run | Yrd Mat Sub Maximum Alert Level . | . . . Low Security (%) 100 | 100 100 . Level 1 . | . . . Level 2 . | . . . Level 3 . | . . . Level 4 . | . . . Level 5 . | . . . High Security . | . . . Max Security . | . . . Peak Influence 134 | 10 134 . Initial . | . . . Average 24 | . 25 . Influence Increases 419 | 35 364 20 Destroy 0b10 Robot/C 260 | . 240 20 Destroy 0b10 Robot/NC 55 | 35 20 . Destroy Leader 56 | . 56 . Destroy Structure 3 | . 3 . Partial Spotted 15 | . 15 . Lose Combat Pursuer 30 | . 30 . Influence Decreases 399 | 35 259 105 Entered New Map 51 | . . 51 Time Decay 338 | 35 249 54 Lost Part 10 | . 10 . Squads Dispatched 2 | . 2 . Investigation 1 | . 1 . Extermination . | . . . Reinforcement 1 | . 1 . Assault . | . . . Garrison . | . . . Intercept . | . . . Searches Triggered . | . . . Construction Impeded . | . . . Haulers Reinforced . | . . . Active Scanning Responses . | . . . Cargo Convoy Interrupts . | . . . Stealth | -11 -10 -10 --------- Run | Yrd Mat Sub Distress Signals 1 | . 1 . Communications Jammed . | . . . Distress Signals . | . . . Times Spotted 30 | . 19 11 Peak Tracking Total 5 | . 5 3 Tactical Retreats 2 | . 2 . Traps | -11 -10 -10 ------- Run | Yrd Mat Sub Traps Triggered 2 | . 2 . Indirectly . | . . . Trap Hack Attempts . | . . . Triggered . | . . . Disarmed . | . . . Reprogrammed . | . . . Reused . | . . . Traps Extracted . | . . . Installed . | . . . Triggered . | . . . Machines | -11 -10 -10 ---------- Run | Yrd Mat Sub Machines Disabled . | . . . Max in Single Turn . | . . . Machines Repaired . | . . . Machines Dismantled . | . . . Machines Sabotaged . | . . . Overloaded Fab Kills . | . . . Hacking | -11 -10 -10 --------- Run | Yrd Mat Sub Machines Accessed . | . . . Terminals . | . . . Fabricators . | . . . Repair Stations . | . . . Recycling Units . | . . . Scanalyzers . | . . . Garrison Access . | . . . Total Hacks . | . . . Successful . | . . . Failed . | . . . Catastrophic . | . . . Database Lockouts . | . . . Manual . | . . . Terminals . | . . . Fabricators . | . . . Repair Stations . | . . . Recycling Units . | . . . Scanalyzers . | . . . Garrison Access . | . . . Terminal Hacks . | . . . Fabricator Hacks . | . . . Repair Station Hacks . | . . . Recycling Unit Hacks . | . . . Scanalyzer . | . . . Garrison Access Hacks . | . . . Unauthorized Hacks . | . . . Terminals . | . . . Fabricators . | . . . Repair Stations . | . . . Recycling Units . | . . . Scanalyzers . | . . . Garrison Access . | . . . Data Cores Recovered . | . . . Used . | . . . Hacking Detections . | . . . Full Trace Events . | . . . Feedback Events . | . . . Feedback Blocked . | . . . Robot Schematics Acquired . | . . . Robots Built . | . . . Authchips . | . . . Time . | . . . Total Robot Build Rating . | . . . Part Schematics Acquired . | . . . Parts Built . | . . . Authchips . | . . . Time . | . . . Total Part Build Rating . | . . . Part Studies Acquired . | . . . Parts Repaired . | . . . Time . | . . . Parts Recycled . | . . . Recycled Matter . | . . . Retrieved Matter . | . . . Retrieved Components . | . . . Parts Scanalyzed . | . . . Part Schematics Acquired . | . . . Parts Damaged . | . . . Bothacking | -11 -10 -10 ------------ Run | Yrd Mat Sub Used RIF Installer . | . . . Robots Hacked . | . . . Non-combat . | . . . Combat . | . . . Robot Hacks Applied . | . . . Relay Couplers Released . | . . . Fabnet Peak Effective % . | . . . Robots Rewired . | . . . Allies Hacked . | . . . Hacks Repelled . | . . . Allies | -11 -10 -10 -------- Run | Yrd Mat Sub Total Allies . | . . . Largest Group . | . . . Highest-Rated Group . | . . . Highest-Rated Ally . | . . . Total Orders . | . . . Ally Attacks . | . . . Total Damage . | . . . Kills . | . . . Allies Corrupted . | . . . Allies Melted . | . . . Intel | -11 -10 -10 ------- Run | Yrd Mat Sub Active Infowar (turns) 4288 | 101 3327 860 Seismic 4288 | 101 3327 860 Robot Analysis Total . | . . . Derelict Logs Recovered 1 | . . 1 Drone Launches . | . . . Drone Recoveries . | . . . Exploration | -11 -10 -10 ------------- Run | Yrd Mat Sub Turns Passed 4493 | 224 3392 877 Spaces Moved 1786 | 159 975 652 Core 18 | 15 . 3 Treads 353 | . 163 190 Legs . | . . . Wheels 1415 | 144 812 459 Hover . | . . . Flight . | . . . Fastest Speed 50 | 50 80 50 Average Speed 106 | 92 103 113 Slowest Speed 250 | 250 240 160 Overloaded Moves . | . . . Propulsion Burnouts . | . . . Robots Hopped . | . . . Potential Cave-ins . | . . . Cave-ins Triggered . | . . . Exploration Rate (%) 38 | 5 74 36 Regions Visited 2 Branch Regions 1 Pre-discovered Areas 1 | . . 1 Known Exits Taken . | . . . Unknown Exits Taken 2 | 1 1 . Scrap Searched . | . . . Spaces Dug 3 | . 3 . Terrain Destroyed 3 | . 3 . Melee . | . . . Projectile 3 | . 3 . AOE . | . . . Terrain Rammed . | . . . Walls Destroyed . | . . . Machines Disabled . | . . . Actions | -11 -10 -10 --------- Run | Yrd Mat Sub Total 4178 | 201 3240 737 Wait 2201 | 10 2160 31 Move 1784 | 158 974 652 Hop . | . . . Pick Up 25 | 7 15 3 Fast Attach 10 | 6 1 3 Attach 4 | 1 . 3 Detach 1 | . . 1 Swap 32 | 3 23 6 Drop 15 | 1 10 4 Fire 105 | 15 56 34 Melee . | . . . Ram . | . . . Kick . | . . . Crush 1 | . 1 . Escape Stasis . | . . . Rewire . | . . . Trap . | . . . Miscellaneous . | . . . Route ------- -11/Scrapyard -10/Materials (discovered 4 exits: [*Mat x2] / [*Min] / [*Sub]) -10/Subcaves (discovered 1 exit: [*Mat]) History --------- Turn | Location | Event 19 | -11/Scrapyard | Discovered new exit (range 15) 225 | -11/Scrapyard | Entered Materials 300 | -10/Materials | Build established: Mutant 511 | -10/Materials | Discovered new exit (range 6) 630 | -10/Materials | Discovered new exit (range 14) 993 | -10/Materials | Discovered new exit (range 14) 2686 | -10/Materials | Discovered new exit (range 4) 3617 | -10/Materials | Entered Subcaves 3618 | -10/Subcaves | Approached by a straggling Scientist 3722 | -10/Subcaves | A swath of the cavern ceiling suddenly collapsed 3858 | -10/Subcaves | Learned location of Zion (-7) 3858 | -10/Subcaves | Met a Zionite searching for "candidates" 4016 | -10/Subcaves | A swath of the cavern ceiling suddenly collapsed 4195 | -10/Subcaves | Discovered new exit (range 5) 4436 | -10/Subcaves | Learned 4 Materials zone layouts 4449 | -10/Subcaves | Ambushed by research squad 4449 | -10/Subcaves | Core integrity fell below 50% 4480 | -10/Subcaves | Core integrity fell below 20% 4494 | -10/Subcaves | Destroyed by H-55 Commando with Assault Rifle Last Messages --------------- 04477_ Seismic Detector destroyed. 04479_ Acquired 1 matter. 04479_ Slug penetrates Wall. 04480_ Mic. Nuclear Core fries itself beyond repair. 04480_ Penetrated by Slug. 04481_ Acquired 1 matter. 04483_ Gravmag System fries itself beyond repair. 04483_ Imp. Heat Sink fries itself beyond repair. 04483_ Penetrated by Slug. 04483_ Imp. Treads destroyed. 04484_ Acquired 1 matter. 04486_ Slug penetrates Wall. 04487_ H-55 Commando destroyed. 04488_ Acquired 1 matter. 04488_ Slug penetrates Wall. 04490_ Acquired Carbon-fiber Leg. 04491_ Penetrated by Slug. Map ----- +----------------------------------------------------+ | ?????????????????????????????????????????????????? | | ?????????????????????????????????????????????????? | | ?????????????????????????????????????????????????? | | ?????????????????????????????????????????????????? | | ?????????????????????????????????????????????????? | | ?????????????????????????????????????????????????? | | ?????????????????????????????????????????????????? | | ?????????????????????????????????????????????????? | | ?????????????????????????????????????????????????? | | ?????????????????????????????????????????????????? | | ?????????????????????????????????????????????????? | | ?????????????????????????????????????????????????? | | ?????????????????????????????????????????????????? | | ?????????????????????????????????####????????????? | | ??###?####???????????????????????# ##?###??????## | | ?## ## ##??????????????????????# #"###"###??###" | | ## ##?????????????????????#""#"##"""####"#" | | #####???###????######## ""##"#"#"##"#"# | | # ##### ###### # # < "####### ###"# | | #?????## ###" | | ## =&######## ###" | | ?###### ## # ###### ## ##&*%## "###"###" | | ??????# ##########?#######!%! #""#"""""" | | ?????## #????## #####???##### ###""#"### | | ???# #???## ## ##### #######"""#"" | | ???## """" ##?### @%!% ##?## #"" #& | | ????# " " "##??# h### # # #?# # ## % | | ???# " "#???# #?###### ### ## * | | ??# "" " "#???# ##????## ### ## | | ??# " " ???##### #????## ##### | | ?? " ### ####?# #??## | | ?"?? ### # # # #??# | | ??? #### ########## #??# | | ??" ##??## # # #?????## #?##" | | ??" *! #??????######### ######?# ###" | | ??? %& ???????????????# #?# #### #"" | | ???? =% ???????????????## #### ## & | | ??????]& ????????????????# # =% | | ????????? ????????????????## %% | | ?????????????????????????????## ##" | | ??????????????????????????????# ###" | | ????????????????????######????# #### ###" | | ????????????????????# #????# #??## ####### | | ?????????????????#### ###### #??# #?????# | | ?????????????????# ## ##??## #????## | | ?????????????????# ## ##???# ####### | | ?????????????????## #### ####?# | | ??????????????????## ## # #### | | ????????????????### # #?#### ## | | ????????????????# ### ### ##????## ### | +----------------------------------------------------+ Best States ------------- Heat Dissipation 25 Coolant Potential 50 Energy Generation 10 Energy Capacity 250 Matter Stores 300 Matter Capacity 300 Sight Range 16 Terrain Scan Density 10 Evasion (%) 50 Recoil Reduction 2 Item Schematics ----------------- None Robot Schematics ------------------ None Fabricated ------------ Nothing Repaired ---------- Nothing Studied --------- None Alien Tech Used ----------------- None Achievements -------------- None Challenges ------------ None Game ------ Seed WaveAngularTurbovents Manual? 0 Play Time 00:26:53 Cumulative 782.0 hours Start 2026.07.30 @ 00:19:07 End 2026.07.30 @ 00:49:11 Sessions 1 Manual Loads 0 Difficulty Rogue Special Mode None Game No. 287 Rogue 283 Adventurer 4 Explorer 0 Win Type - Total 21 Types 9/2/6/0/0/0/2/2/0/0 Lore% 89 Gallery% 77 Achievement% 61 Wizard Run 0 Options --------- Layout 1 ASCII 0 Keyboard 0 Movement Arrows Keybinds 0 Fullscreen 1 Font 40/SmallcapsGlow Map View 50x40 Zoom Use 0% Tactical HUD 1 Map Filters NONE Filters NONE Steam 1 RUN: 8ca5e6fd-87c8-45b0-aaea-775be93731b9